fUST/lending_fUST_20250530
["ID","MTS","AMOUNT","RATE_DAILY","PERIOD"]
[363020026,1748550642709,-5816.94,0.00019452,2]
[363020027,1748550642718,-3167.94,0.00019452,2]
[363020028,1748550642728,-570.55,0.00019452,2]
[363020029,1748550642738,-430.0,0.00019452,2]
[363020030,1748550642748,-430.0,0.00019452,2]
[363020031,1748550642757,-390.0,0.00019452,2]
[363020032,1748550642767,-182.35875499,0.00019452,2]
[363020033,1748550642777,-430.0,0.00019452,2]
[363020034,1748550642786,-430.0,0.00019452,2]
[363020035,1748550642796,-1644.46,0.00019452,2]
[363020036,1748550642806,-430.0,0.00019452,2]
[363020037,1748550642815,-492.09595252,0.00019452,2]
[363020038,1748550642825,-430.0,0.00019452,2]
[363020039,1748550642835,-430.0,0.00019452,2]
[363020040,1748550642844,-430.0,0.00019452,2]
[363020041,1748550642853,-430.0,0.00019452,2]
[363020042,1748550642863,-3205.39,0.00019452,2]
[363020044,1748550642872,-450.0,0.00019452,2]
[363020046,1748550642882,-430.0,0.00019452,2]
[363020048,1748550642890,-291.53892968,0.00019452,2]
[363020049,1748550642900,-430.0,0.00019452,2]
[363020050,1748550642910,-430.0,0.00019452,2]
[363020051,1748550642919,-457.55,0.00019452,2]
[363020052,1748550642929,-924.78,0.00019452,2]
[363020053,1748550642939,-430.0,0.00019452,2]
[363020054,1748550642948,-430.0,0.00019452,2]
[363020055,1748550642957,-430.0,0.00019452,2]
[363020056,1748550642966,-430.0,0.00019452,2]
[363020057,1748550642976,-430.0,0.00019452,2]
[363020059,1748550642985,-173.22149947,0.00019452,2]
[363020061,1748550642994,-253.72579854,0.00019452,2]
[363020062,1748550643003,-430.0,0.00019452,2]
[363020063,1748550643015,-430.0,0.00019452,2]
[363020064,1748550643025,-771.17,0.00019452,2]
[363020065,1748550643034,-451.0,0.00019452,2]
[363020066,1748550643043,-450.0,0.00019452,2]
[363020067,1748550643052,-541.99,0.00019452,2]
[363020068,1748550643062,-430.0,0.00019452,2]
[363020069,1748550643072,-430.0,0.00019452,2]
[363020070,1748550643081,-917.68,0.00019452,2]
[363020071,1748550643091,-430.0,0.00019452,2]
[363020072,1748550643100,-398.1015585,0.00019452,2]
[363020073,1748550643111,-401.77628623,0.00019452,2]
[363020074,1748550643120,-430.0,0.00019452,2]
[363020075,1748550643129,-430.0,0.00019452,2]
[363020076,1748550643138,-495.15,0.00019452,2]
[363020077,1748550643148,-430.0,0.00019452,2]
[363020078,1748550643157,-430.0,0.00019452,2]
[363020079,1748550643166,-430.0,0.00019452,2]
[363020080,1748550643176,-588.48,0.00019452,2]
[363020081,1748550643186,-227.8875824,0.00019452,2]
[363020082,1748550643195,-521.15,0.00019452,2]
[363020083,1748550643204,-802.36,0.00019452,2]
[363020084,1748550643213,-430.0,0.00019452,2]
[363020085,1748550643223,-430.0,0.00019452,2]
[363020086,1748550643232,-2176.74,0.00019452,2]
[363020087,1748550643241,-2716.3,0.00019452,2]
[363020088,1748550643250,-430.0,0.00019452,2]
[363020089,1748550643259,-430.0,0.00019452,2]
[363020090,1748550643268,-4959.5,0.00019452,2]
[363020091,1748550643278,-430.0,0.00019452,2]
[363020092,1748550643287,-430.0,0.00019452,2]
[363020093,1748550643296,-834.78,0.00019452,2]
[363020094,1748550643305,-340.0,0.00019452,2]
[363020095,1748550643314,-430.0,0.00019452,2]
[363020096,1748550643324,-430.0,0.00019452,2]
[363020097,1748550643333,-430.0,0.00019452,2]
[363020098,1748550643343,-430.0,0.00019452,2]
[363020099,1748550643352,-430.0,0.00019452,2]
[363020100,1748550643361,-430.0,0.00019452,2]
[363020101,1748550643371,-430.0,0.00019452,2]
[363020102,1748550643380,-377.91,0.00019452,2]
[363020103,1748550643389,-430.0,0.00019452,2]
[363020104,1748550643398,-470.0,0.00019452,2]
[363020105,1748550643408,-470.0,0.00019452,2]
[363020106,1748550643418,-430.0,0.00019452,2]
[363020107,1748550643428,-2178.61,0.00019725,2]
[363020108,1748550643438,-845.84,0.00019725,2]
[363020109,1748550643447,-5474.82,0.00019725,2]
[363020110,1748550643457,-430.0,0.00019725,2]
[363020111,1748550643467,-1030.72,0.00019725,2]
[363020112,1748550643477,-430.0,0.00019725,2]
[363020113,1748550643486,-2503.67,0.00019725,2]
[363020114,1748550643496,-430.0,0.00019725,2]
[363020115,1748550643506,-151.0,0.00019726,2]
[363020116,1748550643517,-151.0,0.00019726,2]
[363020117,1748550643526,-430.0,0.00019726,2]
[363020118,1748550643535,-236.56458052,0.00019726,2]
[363020119,1748550643546,-430.0,0.00019726,2]
[363020120,1748550643555,-430.0,0.00019726,2]
[363020121,1748550643565,-430.0,0.00019726,2]
[363020122,1748550643575,-559.96,0.00019726,2]
[363020123,1748550643584,-430.0,0.00019726,2]
[363020124,1748550643593,-430.0,0.00019726,2]
[363020125,1748550643602,-430.0,0.00019726,2]
[363020126,1748550643611,-1087.03,0.00019726,2]
[363020127,1748550643621,-430.0,0.00019726,2]
[363020128,1748550643630,-430.0,0.00019726,2]
[363020129,1748550643639,-470.0,0.00019726,2]
[363020130,1748550643649,-430.0,0.00019726,2]
[363020131,1748550643658,-573.27,0.00019726,2]
[363020132,1748550643667,-430.0,0.00019726,2]
[363020133,1748550643677,-490.0,0.00019726,2]
[363020134,1748550643687,-430.0,0.00019726,2]
[363020135,1748550643696,-430.0,0.00019726,2]
[363020136,1748550643705,-469.72,0.00019726,2]
[363020137,1748550643715,-430.0,0.00019726,2]
[363020138,1748550643724,-430.0,0.00019726,2]
[363020139,1748550643733,-470.0,0.00019726,2]
[363020140,1748550643743,-430.03,0.00019726,2]
[363020141,1748550643752,-430.0,0.00019726,2]
[363020142,1748550643762,-430.0,0.00019726,2]
[363020143,1748550643771,-430.0,0.00019726,2]
[363020144,1748550643780,-430.0,0.00019726,2]
[363020145,1748550643789,-430.0,0.00019726,2]
[363020146,1748550643798,-2767.37,0.00019726,2]
[363020147,1748550643808,-430.0,0.00019726,2]
[363020148,1748550643817,-430.0,0.00019726,2]
[363020149,1748550643827,-4397.12,0.00019726,2]
[363020150,1748550643835,-430.0,0.00019726,2]
[363020151,1748550643844,-4189.56,0.00019726,2]
[363020152,1748550643854,-1518.53,0.00019726,2]
[363020153,1748550643863,-863.61,0.00019726,2]
[363020154,1748550643872,-430.0,0.00019726,2]
[363020155,1748550643882,-430.0,0.00019726,2]
[363020156,1748550643891,-430.0,0.00019726,2]
[363020157,1748550643900,-430.0,0.00019726,2]
[363020158,1748550643909,-1058.58,0.00019726,2]
[363020159,1748550643919,-430.0,0.00019726,2]
[363020160,1748550643929,-1198.14,0.00019726,2]
[363020161,1748550643939,-430.0,0.00019726,2]
[363020162,1748550643948,-430.0,0.00019726,2]
[363020163,1748550643957,-430.0,0.00019726,2]
[363020164,1748550643967,-4193.84,0.00019726,2]
[363020165,1748550643976,-430.0,0.00019726,2]
[363020166,1748550643985,-1534.73,0.00019726,2]
[363020167,1748550643995,-2450.36,0.00019726,2]
[363020168,1748550644004,-430.0,0.00019726,2]
[363020169,1748550644016,-430.0,0.00019726,2]
[363020170,1748550644025,-1581.8,0.00019726,2]
[363020171,1748550644035,-908.34,0.00019726,2]
[363020172,1748550644044,-633.61,0.00019726,2]
[363020173,1748550644055,-3515.74,0.00019726,2]
[363020174,1748550644065,-450.0,0.00019726,2]
[363020175,1748550644075,-1854.82,0.00019726,2]
[363020176,1748550644084,-1560.77,0.00019726,2]
[363020177,1748550644094,-5816.94,0.00019726,2]
[363020178,1748550644104,-3167.94,0.00019726,2]
[363020179,1748550644113,-570.55,0.00019726,2]
[363020180,1748550644123,-430.0,0.00019726,2]
[363020181,1748550644132,-430.0,0.00019726,2]
[363020182,1748550644141,-1644.46,0.00019726,2]
[363020183,1748550644151,-430.0,0.00019726,2]
[363020184,1748550644161,-3205.39,0.00019726,2]
[363020185,1748550644171,-571.85411967,0.00019726,2]
[363020186,1748550644180,-430.0,0.00019726,2]
[363020187,1748550644190,-457.55,0.00019726,2]
[363020188,1748550644200,-924.78,0.00019726,2]
[363020189,1748550644209,-430.0,0.00019726,2]
[363020190,1748550644219,-412.19491668,0.00019726,2]
[363020191,1748550644228,-430.0,0.00019726,2]
[363020192,1748550644239,-430.0,0.00019726,2]
[363020193,1748550644248,-430.0,0.00019726,2]
[363020194,1748550644258,-490.0,0.00019726,2]
[363020195,1748550644267,-771.17,0.00019726,2]
[363020196,1748550644276,-541.99,0.00019726,2]
[363020197,1748550644286,-430.0,0.00019726,2]
[363020198,1748550644296,-430.0,0.00019726,2]
[363020199,1748550644305,-917.68,0.00019726,2]
[363020200,1748550644315,-430.0,0.00019726,2]
[363020201,1748550644326,-430.0,0.00019726,2]
[363020202,1748550644335,-430.0,0.00019726,2]
[363020203,1748550644345,-495.15,0.00019726,2]
[363020204,1748550644354,-430.0,0.00019726,2]
[363020205,1748550644363,-408.30236844,0.00019726,2]
[363020206,1748550644373,-588.48,0.00019726,2]
[363020207,1748550644382,-521.15,0.00019726,2]
[363020208,1748550644392,-802.36,0.00019726,2]
[363020209,1748550644401,-430.0,0.00019726,2]
[363020210,1748550644410,-2176.74,0.00019726,2]
[363020211,1748550644420,-2716.3,0.00019726,2]
[363020212,1748550644431,-430.0,0.00019726,2]
[363020213,1748550644440,-430.0,0.00019726,2]
[363020214,1748550644449,-4959.5,0.00019726,2]
[363020215,1748550644459,-393.88889079,0.00019726,2]
[363020216,1748550644468,-430.0,0.00019726,2]
[363020217,1748550644478,-834.78,0.00019726,2]
[363020218,1748550644487,-430.0,0.00019726,2]
[363020219,1748550644496,-430.0,0.00019726,2]
[363020220,1748550644506,-430.0,0.00019726,2]
[363020221,1748550644515,-430.0,0.00019726,2]
[363020222,1748550644525,-430.0,0.00019726,2]
[363020223,1748550644534,-430.0,0.00019726,2]
[363020224,1748550644544,-430.0,0.00019726,2]
[363020225,1748550644553,-430.0,0.00019726,2]
[363020226,1748550644562,-1524.18601196,0.000199,2]
[363020227,1748550644572,-621.92748547,0.00019983,2]
[363020228,1748550644581,-2178.61,0.00019999,2]
[363020229,1748550644591,-845.84,0.00019999,2]
[363020230,1748550644601,-5474.82,0.00019999,2]
[363020231,1748550644610,-1030.72,0.00019999,2]
[363020232,1748550644620,-430.0,0.00019999,2]
[363020233,1748550644629,-2503.67,0.00019999,2]
[363020234,1748550644638,-151.0,0.0002,2]
[363020235,1748550644648,-151.0,0.0002,2]
[363020236,1748550644657,-151.0,0.0002,2]
[363020237,1748550644667,-151.0,0.0002,2]
[363020238,1748550644677,-151.0,0.0002,2]
[363020239,1748550644687,-338.97639886,0.0002,2]
[363020240,1748550644696,-430.0,0.0002,2]
[363020241,1748550644706,-470.0,0.0002,2]
[363020242,1748550644715,-559.96,0.0002,2]
[363020243,1748550644725,-430.0,0.0002,2]
[363020244,1748550644735,-430.0,0.0002,2]
[363020245,1748550644744,-430.0,0.0002,2]
[363020246,1748550644754,-1087.03,0.0002,2]
[363020247,1748550644763,-430.0,0.0002,2]
[363020248,1748550644773,-430.0,0.0002,2]
[363020249,1748550644783,-473.51014504,0.0002,2]
[363020250,1748550644793,-573.27,0.0002,2]
[363020251,1748550644803,-340.37008457,0.0002,2]
[363020252,1748550644812,-430.0,0.0002,2]
[363020253,1748550644821,-430.0,0.0002,2]
[363020254,1748550644917,-469.72,0.0002,2]
[363020255,1748550644939,-430.0,0.0002,2]
[363020256,1748550644949,-430.0,0.0002,2]
[363020257,1748550644958,-430.03,0.0002,2]
[363020258,1748550644968,-430.0,0.0002,2]
[363020259,1748550644977,-430.0,0.0002,2]
[363020260,1748550644987,-430.0,0.0002,2]
[363020261,1748550644996,-430.0,0.0002,2]
[363020262,1748550645006,-430.0,0.0002,2]
[363020263,1748550645017,-2767.37,0.0002,2]
[363020264,1748550645026,-430.0,0.0002,2]
[363020265,1748550645036,-430.0,0.0002,2]
[363020266,1748550645045,-4397.12,0.0002,2]
[363020267,1748550645055,-430.0,0.0002,2]
[363020268,1748550645065,-4189.56,0.0002,2]
[363020269,1748550645074,-1518.53,0.0002,2]
[363020270,1748550645083,-863.61,0.0002,2]
[363020271,1748550645093,-430.0,0.0002,2]
[363020272,1748550645103,-430.0,0.0002,2]
[363020273,1748550645112,-430.0,0.0002,2]
[363020274,1748550645122,-1058.58,0.0002,2]
[363020275,1748550645131,-430.0,0.0002,2]
[363020276,1748550645140,-1198.14,0.0002,2]
[363020277,1748550645150,-430.0,0.0002,2]
[363020278,1748550645159,-430.0,0.0002,2]
[363020279,1748550645168,-430.0,0.0002,2]
[363020280,1748550645179,-4193.84,0.0002,2]
[363020281,1748550645188,-430.0,0.0002,2]
[363020282,1748550645197,-1534.73,0.0002,2]
[363020283,1748550645207,-2450.36,0.0002,2]
[363020284,1748550645217,-430.0,0.0002,2]
[363020285,1748550645226,-430.0,0.0002,2]
[363020286,1748550645236,-1581.8,0.0002,2]
[363020287,1748550645245,-908.34,0.0002,2]
[363020288,1748550645255,-633.61,0.0002,2]
[363020289,1748550645266,-3515.74,0.0002,2]
[363020290,1748550645275,-1362.54240735,0.0002,30]
[363020291,1748550645285,-1854.82,0.0002,2]
[363020292,1748550645294,-1560.77,0.0002,2]
[363020293,1748550645304,-5816.94,0.0002,2]
[363020295,1748550645314,-3167.94,0.0002,2]
[363020297,1748550645323,-570.55,0.0002,2]
[363020298,1748550645333,-430.0,0.0002,2]
[363020299,1748550645342,-430.0,0.0002,2]
[363020300,1748550645353,-1644.46,0.0002,2]
[363020301,1748550645362,-430.0,0.0002,2]
[363020303,1748550645372,-3205.39,0.0002,2]
[363020304,1748550645381,-430.0,0.0002,2]
[363020305,1748550645390,-457.55,0.0002,2]
[363020306,1748550645400,-924.78,0.0002,2]
[363020307,1748550645410,-430.0,0.0002,2]
[363020308,1748550645419,-430.0,0.0002,2]
[363020309,1748550645430,-771.17,0.0002,2]
[363020310,1748550645439,-541.99,0.0002,2]
[363020311,1748550645449,-430.0,0.0002,2]
[363020312,1748550645459,-430.0,0.0002,2]
[363020313,1748550645468,-917.68,0.0002,2]
[363020314,1748550645478,-430.0,0.0002,2]
[363020315,1748550645487,-430.0,0.0002,2]
[363020316,1748550645497,-495.15,0.0002,2]
[363020317,1748550645507,-588.48,0.0002,2]
[363020318,1748550645519,-521.15,0.0002,2]
[363020319,1748550645533,-802.36,0.0002,2]
[363020321,1748550645543,-430.0,0.0002,2]
[363020322,1748550645552,-2176.74,0.0002,2]
[363020323,1748550645562,-2716.3,0.0002,2]
[363020324,1748550645571,-280.31,0.0002,2]
[363020325,1748550645581,-430.0,0.0002,2]
[363020326,1748550645590,-4959.5,0.0002,2]
[363020328,1748550645600,-430.0,0.0002,2]
[363020329,1748550645609,-834.78,0.0002,2]
[363020330,1748550645618,-388.23389426,0.0002,2]
[363020331,1748550645628,-470.0,0.0002,2]
[363020332,1748550645638,-430.0,0.0002,2]
[363020333,1748550645647,-448.27840671,0.0002,2]
[363020334,1748550645657,-430.0,0.0002,2]
[363020335,1748550645666,-430.0,0.0002,2]
[363020336,1748550645677,-207.4,0.00020066,2]
[363020337,1748550645689,-300.0,0.00020066,2]
[363020338,1748550645699,-300.0,0.00020066,2]
[363020339,1748550645710,-300.0,0.00020066,2]
[363020340,1748550645720,-300.0,0.00020066,2]
[363020341,1748550645733,-300.0,0.00020066,2]
[363020342,1748550645744,-300.0,0.00020066,2]
[363020343,1748550645754,-300.0,0.00020066,2]
[363020344,1748550645767,-300.0,0.00020066,2]
[363020345,1748550645776,-300.0,0.00020066,2]
[363020347,1748550645787,-300.0,0.00020066,2]
[363020348,1748550645797,-300.0,0.00020066,2]
[363020350,1748550645806,-300.0,0.00020066,2]
[363020351,1748550645816,-300.0,0.00020066,2]
[363020353,1748550645825,-300.0,0.00020066,2]
[363020354,1748550645835,-300.0,0.00020066,2]
[363020355,1748550645844,-1524.1860118,0.00020072,2]
[363020356,1748550645854,-160.0,0.0002013,2]
[363020357,1748550645863,-160.0,0.0002013,2]
[363020358,1748550645873,-160.0,0.00020144,2]
[363020359,1748550645882,-160.0,0.00020144,2]
[363020360,1748550645892,-212.70147903,0.00020144,2]
[363020361,1748550645901,-160.0,0.00020144,2]
[363020362,1748550645911,-423.31762986,0.00020144,2]
[363020363,1748550645920,-229.26895353,0.00020144,2]
[363020364,1748550645930,-714.518816,0.00020187,2]
[363020365,1748550645940,-1524.1860118,0.00020245,2]
[363020366,1748550645949,-151.0,0.00020273,2]
[363020367,1748550645959,-151.0,0.00020273,2]
[363020368,1748550645968,-430.0,0.00020273,2]
[363020369,1748550645977,-559.96,0.00020273,2]
[363020370,1748550645986,-430.0,0.00020273,2]
[363020371,1748550645996,-430.0,0.00020273,2]
[363020372,1748550646005,-1087.03,0.00020273,2]
[363020373,1748550646017,-430.0,0.00020273,2]
[363020374,1748550646026,-430.0,0.00020273,2]
[363020375,1748550646036,-573.27,0.00020273,2]
[363020376,1748550646046,-430.0,0.00020273,2]
[363020377,1748550646056,-430.0,0.00020273,2]
[363020378,1748550646066,-469.72,0.00020273,2]
[363020379,1748550646075,-430.0,0.00020273,2]
[363020380,1748550646084,-430.0,0.00020273,2]
[363020381,1748550646095,-430.03,0.00020273,2]
[363020382,1748550646105,-430.0,0.00020273,2]
[363020383,1748550646115,-430.0,0.00020273,2]
[363020384,1748550646124,-2178.61,0.00020273,2]
[363020385,1748550646134,-430.0,0.00020273,2]
[363020386,1748550646143,-430.0,0.00020273,2]
[363020387,1748550646151,-158.01,0.00020273,2]
[363020388,1748550646161,-2767.37,0.00020273,2]
[363020389,1748550646171,-430.0,0.00020273,2]
[363020390,1748550646182,-430.0,0.00020273,2]
[363020391,1748550646191,-4397.12,0.00020273,2]
[363020392,1748550646201,-845.84,0.00020273,2]
[363020393,1748550646211,-430.0,0.00020273,2]
[363020394,1748550646220,-4189.56,0.00020273,2]
[363020396,1748550646229,-5474.82,0.00020273,2]
[363020397,1748550646239,-1518.53,0.00020273,2]
[363020398,1748550646252,-863.61,0.00020273,2]
[363020399,1748550646262,-430.0,0.00020273,2]
[363020400,1748550646271,-430.0,0.00020273,2]
[363020401,1748550646281,-430.0,0.00020273,2]
[363020403,1748550646291,-1058.58,0.00020273,2]
[363020404,1748550646300,-430.0,0.00020273,2]
[363020405,1748550646310,-1198.14,0.00020273,2]
[363020406,1748550646320,-1030.72,0.00020273,2]
[363020407,1748550646329,-430.0,0.00020273,2]
[363020408,1748550646339,-430.0,0.00020273,2]
[363020409,1748550646348,-430.0,0.00020273,2]
[363020410,1748550646357,-430.0,0.00020273,2]
[363020411,1748550646367,-4193.84,0.00020273,2]
[363020412,1748550646377,-430.0,0.00020273,2]
[363020413,1748550646387,-1534.73,0.00020273,2]
[363020414,1748550646395,-2450.36,0.00020273,2]
[363020415,1748550646405,-430.0,0.00020273,2]
[363020416,1748550646414,-2503.67,0.00020273,2]
[363020417,1748550646423,-430.0,0.00020273,2]
[363020418,1748550646435,-1581.8,0.00020273,2]
[363020419,1748550646445,-908.34,0.00020273,2]
[363020420,1748550646455,-633.61,0.00020273,2]
[363020421,1748550646465,-3515.74,0.00020273,2]
[363020422,1748550646475,-1854.82,0.00020273,2]
[363020423,1748550646484,-1560.77,0.00020273,2]
[363020424,1748550646493,-5816.94,0.00020273,2]
[363020425,1748550646503,-3167.94,0.00020273,2]
[363020426,1748550646512,-570.55,0.00020273,2]
[363020427,1748550646522,-430.0,0.00020273,2]
[363020428,1748550646531,-430.0,0.00020273,2]
[363020429,1748550646542,-1644.46,0.00020273,2]
[363020430,1748550646551,-3205.39,0.00020273,2]
[363020431,1748550646561,-457.55,0.00020273,2]
[363020432,1748550646571,-924.78,0.00020273,2]
[363020433,1748550646580,-430.0,0.00020273,2]
[363020434,1748550646590,-382.36,0.00020273,2]
[363020435,1748550646599,-771.17,0.00020273,2]
[363020436,1748550646609,-541.99,0.00020273,2]
[363020437,1748550646619,-430.0,0.00020273,2]
[363020438,1748550646628,-917.68,0.00020273,2]
[363020439,1748550646637,-349.03655529,0.00020273,2]
[363020440,1748550646646,-430.0,0.00020273,2]
[363020441,1748550646656,-430.0,0.00020273,2]
[363020442,1748550646666,-495.15,0.00020273,2]
[363020443,1748550646675,-588.48,0.00020273,2]
[363020444,1748550646684,-521.15,0.00020273,2]
[363020445,1748550646693,-802.36,0.00020273,2]
[363020446,1748550646702,-2176.74,0.00020273,2]
[363020447,1748550646711,-2716.3,0.00020273,2]
[363020448,1748550646721,-430.0,0.00020273,2]
[363020449,1748550646730,-4959.5,0.00020273,2]
[363020450,1748550646739,-430.0,0.00020273,2]
[363020451,1748550646749,-834.78,0.00020273,2]
[363020452,1748550646759,-430.0,0.00020273,2]
[363020453,1748550646768,-430.0,0.00020273,2]
[363020454,1748550646777,-430.0,0.00020273,2]
[363020455,1748550646786,-151.0,0.00020329,2]
[363020456,1748550646796,-151.0,0.00020329,2]
[363020457,1748550646806,-151.0,0.00020329,2]
[363020458,1748550646815,-151.5283339,0.00020329,2]
[363020459,1748550646824,-1524.1860118,0.00020417,3]
[363020460,1748550646833,-748.359,0.00020425,2]
[363020461,1748550646843,-176.70832624,0.00020425,2]
[363020462,1748550646853,-1072.96,0.00020538,3]
[363020463,1748550646862,-536.48,0.00020538,3]
[363020464,1748550646871,-151.0,0.00020547,2]
[363020465,1748550646881,-151.0,0.00020547,2]
[363020466,1748550646890,-430.0,0.00020547,2]
[363020467,1748550646899,-559.96,0.00020547,2]
[363020468,1748550646908,-430.0,0.00020547,2]
[363020469,1748550646918,-190.33168477,0.00020547,2]
[363020470,1748550646927,-1087.03,0.00020547,2]
[363020471,1748550646936,-430.0,0.00020547,2]
[363020472,1748550646945,-430.0,0.00020547,2]
[363020473,1748550646955,-573.27,0.00020547,2]
[363020474,1748550646964,-430.0,0.00020547,2]
[363020475,1748550646973,-430.0,0.00020547,2]
[363020476,1748550646983,-469.72,0.00020547,2]
[363020477,1748550646991,-430.0,0.00020547,2]
[363020478,1748550647000,-430.0,0.00020547,2]
[363020479,1748550647011,-430.03,0.00020547,2]
[363020480,1748550647021,-430.0,0.00020547,2]
[363020481,1748550647030,-430.0,0.00020547,2]
[363020482,1748550647040,-2178.61,0.00020547,2]
[363020483,1748550647049,-430.0,0.00020547,2]
[363020484,1748550647059,-2767.37,0.00020547,2]
[363020485,1748550647160,-430.0,0.00020547,2]
[363020486,1748550647169,-430.0,0.00020547,2]
[363020487,1748550647180,-4397.12,0.00020547,2]
[363020488,1748550647190,-845.84,0.00020547,2]
[363020489,1748550647199,-430.0,0.00020547,2]
[363020490,1748550647208,-4189.56,0.00020547,2]
[363020491,1748550647217,-5474.82,0.00020547,2]
[363020492,1748550647227,-1518.53,0.00020547,2]
[363020493,1748550647236,-863.61,0.00020547,2]
[363020494,1748550647246,-430.0,0.00020547,2]
[363020495,1748550647255,-430.0,0.00020547,2]
[363020496,1748550647264,-430.0,0.00020547,2]
[363020497,1748550647273,-1058.58,0.00020547,2]
[363020498,1748550647282,-430.0,0.00020547,2]
[363020499,1748550647291,-1198.14,0.00020547,2]
[363020500,1748550647301,-1030.72,0.00020547,2]
[363020501,1748550647310,-430.0,0.00020547,2]
[363020502,1748550647320,-430.0,0.00020547,2]
[363020503,1748550647329,-430.0,0.00020547,2]
[363020504,1748550647339,-430.0,0.00020547,2]
[363020505,1748550647348,-4193.84,0.00020547,2]
[363020506,1748550647357,-430.0,0.00020547,2]
[363020507,1748550647366,-1534.73,0.00020547,2]
[363020508,1748550647375,-2450.36,0.00020547,2]
[363020509,1748550647385,-430.0,0.00020547,2]
[363020510,1748550647395,-2503.67,0.00020547,2]
[363020511,1748550647404,-430.0,0.00020547,2]
[363020512,1748550647413,-1581.8,0.00020547,2]
[363020513,1748550647422,-908.34,0.00020547,2]
[363020514,1748550647431,-633.61,0.00020547,2]
[363020515,1748550647440,-3515.74,0.00020547,2]
[363020516,1748550647450,-1854.82,0.00020547,2]
[363020517,1748550647459,-1560.77,0.00020547,2]
[363020518,1748550647469,-5816.94,0.00020547,2]
[363020519,1748550647478,-3167.94,0.00020547,2]
[363020520,1748550647488,-570.55,0.00020547,2]
[363020521,1748550647497,-430.0,0.00020547,2]
[363020522,1748550647507,-524.39,0.00020547,2]
[363020523,1748550647516,-1644.46,0.00020547,2]
[363020524,1748550647526,-3205.39,0.00020547,2]
[363020525,1748550647535,-457.55,0.00020547,2]
[363020526,1748550647545,-924.78,0.00020547,2]
[363020527,1748550647554,-430.0,0.00020547,2]
[363020528,1748550647563,-771.17,0.00020547,2]
[363020529,1748550647572,-541.99,0.00020547,2]
[363020530,1748550647581,-430.0,0.00020547,2]
[363020531,1748550647590,-917.68,0.00020547,2]
[363020532,1748550647600,-430.0,0.00020547,2]
[363020533,1748550647609,-430.0,0.00020547,2]
[363020534,1748550647618,-495.15,0.00020547,2]
[363020535,1748550647627,-588.48,0.00020547,2]
[363020536,1748550647636,-521.15,0.00020547,2]
[363020537,1748550647645,-802.36,0.00020547,2]
[363020538,1748550647655,-2176.74,0.00020547,2]
[363020539,1748550647664,-2716.3,0.00020547,2]
[363020540,1748550647673,-430.0,0.00020547,2]